{"text_format":"1","workbook":"xlsx","n_sheets":2,"sheets":["Valutaomregning","Omregningskurser"],"not_rendered":{"charts":0,"images":1,"macros":1,"external_links":0,"defined_names":7,"comments":0,"pivot_tables":0},"unopened":[],"bounds":{"document_bytes":16777216,"sheet_cells":100000,"rows_first":2000,"rows_last":500,"rows_between":2000,"halvings":0,"cell_chars":16384,"cell_head_chars":4096},"cells_cut":0,"cells_raw":0,"read":"whole","date_system":"1900"}

{"sheet":"Valutaomregning","index":0,"n_rows":10,"n_cols":5,"rows_kept":10,"cut":false,"hidden":false,"merged":[]}
[]
[]
[]
[]
[null,null,null,41,6000]
[]
[]
[]
[]
[null,null,null,27,{"$f":"IFERROR(IF(OR(FromCurrency=0,ToCurrency=0),\"\",FromAmount/OFFSET(Valutaer,FromCurrency-1,3,1,1)*OFFSET(Valutaer,ToCurrency-1,3,1,1)),\"\")","v":35664}]

{"sheet":"Omregningskurser","index":1,"n_rows":59,"n_cols":5,"rows_kept":59,"cut":false,"hidden":false,"merged":[]}
["Omregningskurser"]
["Dataene i dette ark stammer fra en webforespørgsel på MSN Money. De opdateres, når der klikkes på knappen Opdater omregningskurser i arket Valutaomregning."]
[null,null,"Currency Rates Provided by MSN Money"]
[null,null,"Click here to visit MSN Money"]
[]
[null,"Navn på liste","Navn","I amerikanske dollar","   Pr. amerikanske dollar"]
[null,{"$f":"IF(ISERROR(FIND(\" til amerikanske dollar\",C7)),C7,LEFT(C7,FIND(\" til amerikanske dollar\",C7)-1))","v":"Argentinske pesoer"},"Argentinske pesoer til amerikanske dollar",0.22375999999999999,4.4690000000000003]
[null,"Australske dollar","Australske dollar til amerikanske dollar",0.99246000000000001,1.008]
[null,"Bahraini Dinar to US Dollar","Bahraini Dinar to US Dollar",2.6497000000000002,0.377]
[null,"Bahrainske dinarer","Bahrainske dinarer til amerikanske dollar",0.14346999999999999,6.97]
[null,"Brasilianske real","Brasilianske real til amerikanske dollar",0.48810999999999999,2.0489999999999999]
[null,"Britiske pund","Britiske pund til amerikanske dollar",1.5814999999999999,0.63200000000000001]
[null,"Canadiske dollar","Canadiske dollar til amerikanske dollar",0.98406000000000005,1.016]
[null,"Chilenske pesoer","Chilenske pesoer til amerikanske dollar",1.97E-3,506.6]
[null,"Kinesiske Yuan","Kinesiske Yuan til amerikanske dollar",0.15833,6.3159999999999998]
[null,"Colombianske pesoer","Colombianske pesoer til amerikanske dollar",5.5000000000000003E-4,1836]
[null,"Tjekkiske koruna","Tjekkiske koruna til amerikanske dollar",5.0869999999999999E-2,19.658999999999999]
[null,"Danske kroner","Danske kroner til amerikanske dollar",0.17208999999999999,5.8109999999999999]
[null,"Euro","Euro til amerikanske dollar",1.2786,0.78200000000000003]
[null,"Egyptiske pund*","Egyptiske pund* til amerikanske dollar",0.16527,6.0510000000000002]
[null,"Hongkong-dollar","Hongkong-dollar til amerikanske dollar",0.12878999999999999,7.7649999999999997]
[null,"Ungarske forint","Ungarske forint til amerikanske dollar",4.3099999999999996E-3,231.8]
[null,"Indiske rupier","Indiske rupier til amerikanske dollar",1.822E-2,54.9]
[null,"Indonesiske rupier","Indonesiske rupier til amerikanske dollar",1.1E-4,9341]
[null,"Japanske yen","Japanske yen til amerikanske dollar",1.2579999999999999E-2,79.48]
[null,"Jordanske dinarer","Jordanske dinarer til amerikanske dollar",1.4085000000000001,0.71]
[null,"Kenyanske shilling","Kenyanske shilling til amerikanske dollar",1.174E-2,85.15]
[null,"Sydkoreanske won","Sydkoreanske won til amerikanske dollar",8.5999999999999998E-4,1163]
[null,"Kuwaitiske dinarer","Kuwaitiske dinarer til amerikanske dollar",3.5796999999999999,0.27900000000000003]
[null,"Kuwaitiske dinarer","Kuwaitiske dinarer til amerikanske dollar",0.11537,8.6679999999999993]
[null,"Malaysiske ringgit","Malaysiske ringgit til amerikanske dollar",0.32072000000000001,3.1179999999999999]
[null,"Mexican Peso to US Dollar","Mexican Peso to US Dollar",7.3080000000000006E-2,13.683]
[null,"Norske kroner","Norske kroner til amerikanske dollar",0.16824,5.944]
[null,"Omanske rial","Omanske rial til amerikanske dollar",2.5988000000000002,0.38500000000000001]
[null,"Peruvianske nuevo sol","Peruvianske nuevo sol til amerikanske dollar",0.37341000000000002,2.6779999999999999]
[null,"Filippinske pesoer","Filippinske pesoer til amerikanske dollar",2.315E-2,43.2]
[null,"Pakistanske rupier","Pakistanske rupier til amerikanske dollar",1.0869999999999999E-2,92]
[null,"Saudiarabiske riyal","Saudiarabiske riyal til amerikanske dollar",0.2666,3.7509999999999999]
[null,"Singaporeansk dollar","Singaporeansk dollar til amerikanske dollar",0.78957999999999995,1.266]
[null,"Sydafrikanske rand","Sydafrikanske rand til amerikanske dollar",0.12149,8.2319999999999993]
[null,"Svenske kroner","Svenske kroner til amerikanske dollar",0.14043,7.1210000000000004]
[null,"Svenske kroner","Svenske kroner til amerikanske dollar",1.0647,0.93899999999999995]
[null,"Svenske kroner","Svenske kroner til amerikanske dollar",3.3890000000000003E-2,29.507000000000001]
[null,"Svenske kroner","Svenske kroner til amerikanske dollar",3.193E-2,31.32]
[null,"Tunesiske dinarer","Tunesiske dinarer til amerikanske dollar",0.63383,1.5780000000000001]
[null,"Emiratiske dirham","Emiratiske dirham til amerikanske dollar",0.27221000000000001,3.6739999999999999]
[null,{"$f":"IF(ISERROR(FIND(\" til amerikanske dollar\",C47)),C47,LEFT(C47,FIND(\" til amerikanske dollar\",C47)-1))","v":"Amerikanske dollar"},"Amerikanske dollar",1,1]
[null,{"$f":"IF(ISERROR(FIND(\" til amerikanske dollar\",C48)),C48,LEFT(C48,FIND(\" til amerikanske dollar\",C48)-1))","v":"Venezuelanske bolivar"},"Venezuelanske bolivar til amerikanske dollar",0.23282,4.2949999999999999]
[]
[]
[]
[null,null,"MSN Money",null,"Microsoft Office Update"]
[null,null,"Find investeringsværktøjer, kolonner m.m.!",null,"Få det nyeste fra Microsoft Office"]
[null,null,"Beskyttelse af personlige oplysninger"]
[null,null,"Juridisk"]
[null,null,"Annoncér"]
[null,null,"MSN Worldwide"]
[null,null,"Om vores annoncer"]
[null,null,"© 2012 Microsoft "]